Cogmind - Beta 15 @@@ ROGUE MODE // 2025.06.07 @ 02:04:55 Player: Sen Result: Destroyed by S-27 Virus with Autogun Performance ------------- Evolutions (6) 3000 Regions Visited (9) 1800 Robots Destroyed (93) 465 Value Destroyed (3766) 3766 Prototype IDs (2) 40 Alien Tech Used (0) 0 Bonus (535) 535 TOTAL SCORE: 9606 Bonus ------- Follower Combat Kills 35 Entered DSFs 500 Cogmind --------- Core Integrity 0/1150 Matter 281/300 Energy 34/100 System Corruption 4% Temperature Cool (0) Movement Core (50) Location -4/Factory Parts ------- > --- POWER (2) -------- (None) > --- PROPULSION (5) --- (None) > --- UTILITY (8) ------ Advanced ECM Suite Hacking Suite > --- WEAPON (4) ------- (None) > --- INVENTORY (5) ---- Improved Ion Engine Neutrino Core Triangulator Peak State ------------ > --- POWER ------------ Light Nuclear Core Light Fission Core > --- PROPULSION ------- Carbon-fiber Leg Carbon-fiber Leg Carbon-fiber Leg Flexi-carbon Leg Improved VSS Leg > --- UTILITY ---------- Medium Storage Unit Triangulator Improved Target Analyzer Improved Medium Armor Plating Improved Medium Armor Plating Layered Medium Armor Plating Layered Medium Armor Plating Hacking Suite > --- WEAPON ----------- Scythe Chainsword Chainsword Power Sword > --- INVENTORY -------- Improved Ion Engine Light Angular Momentum Engine Neutrino Core Neutrino Core Carbon-fiber Leg EM Shield Shock Bomb Launcher [Rating: 78] Favorites ----------- Power Ion Engine Engine Ion Engine Power Core Light Nuclear Core Propulsion Carbon-fiber Leg Treads Armored Medium Treads Leg Carbon-fiber Leg Wheel Wheel Hover Unit Hover Unit Flight Unit Improved Cesium-ion Thruster Utility Small Storage Unit Device Improved Sensor Array Storage Small Storage Unit Processor Improved Target Analyzer Hackware Hacking Suite Protection Layered Medium Armor Plating Weapon Assault Rifle Energy Gun EM Shotgun Energy Cannon Heavy Ion Cannon Ballistic Gun Assault Rifle Ballistic Cannon Flak Cannon Launcher Shock Bomb Launcher Slashing Weapon Chainsword Special Melee Weapon Improved Datajack Build | -11 -10 -9 -9 -8 -7 -6 -6 -5 -4 ------- Run | Yrd Mat Mat Min Mat Fac Fac DSF Fac Fac Slots Evolved 12 | . . 2 . 2 2 2 . 2 2 Power 1 | . . . . 1 . . . . . Propulsion 3 | . . 1 . . . 1 . . 1 Utility 6 | . . 1 . 1 2 . . 2 . Weapon 2 | . . . . . . 1 . . 1 Parts Attached 129 | 7 5 7 3 7 35 4 24 28 9 Power 22 | 1 1 1 . 1 7 . 3 5 3 Engine 13 | 1 1 1 . 1 3 . 3 1 2 Core 9 | . . . . . 4 . . 4 1 Reactor . | . . . . . . . . . . Propulsion 34 | 2 3 2 . . 6 1 8 7 5 Treads 2 | . . . . . . . . . 2 Leg 25 | 2 1 . . . 3 1 8 7 3 Wheel 3 | . . 1 . . 2 . . . . Hover 3 | . 2 1 . . . . . . . Flight 1 | . . . . . 1 . . . . Utility 49 | 2 . 2 1 4 14 1 9 15 1 Device 26 | 1 . 1 1 2 10 . 4 6 1 Storage 6 | 1 . . . . 1 1 1 2 . Processor 3 | . . 1 . . 1 . . 1 . Hackware 1 | . . . . . . . . 1 . Protection 13 | . . . . 2 2 . 4 5 . Artifact . | . . . . . . . . . . Weapon 24 | 2 1 2 2 2 8 2 4 1 . Energy Gun 8 | . . 2 . 1 3 . 2 . . Energy Cannon 1 | . . . . . . 1 . . . Ballistic Gun 5 | 2 1 . . . 2 . . . . Ballistic Cannon 2 | . . . . 1 1 . . . . Launcher 3 | . . . 1 . 2 . . . . Special Weapon . | . . . . . . . . . . Impact Weapon . | . . . . . . . . . . Slashing Weapon 4 | . . . . . . 1 2 1 . Piercing Weapon . | . . . . . . . . . . Special Melee Weapon 1 | . . . 1 . . . . . . Unidentified Prototypes 2 | . . . . 1 1 . . . . Parts Lost 77 | . . 1 . 6 16 1 16 12 25 Power 18 | . . . . 2 4 1 4 2 5 Propulsion 27 | . . . . 2 3 . 10 4 8 Utility 23 | . . 1 . . 7 . 2 6 7 Weapon 9 | . . . . 2 2 . . . 5 Highest Loss Streak 16 | . . 1 . 3 8 1 9 3 16 To Critical Strikes 1 | . . . . . . . . 1 . Average Backups 6 | 3 7 7 8 7 7 5 5 9 6 Power 1 | 1 1 1 1 . . . . 2 3 Propulsion 1 | 1 2 1 1 1 1 1 1 2 . Utility 1 | . 1 1 1 2 . . 1 1 1 Weapon 1 | 1 2 2 3 1 3 2 1 2 . Tool/Special . | . . . . . . . . . . Unused Backups 15 | . 2 2 2 . 2 . 4 1 2 Power 3 | . 1 . . . . . . . 2 Propulsion 2 | . . . . . . . 1 1 . Utility 5 | . 1 1 1 . . . 2 . . Weapon 4 | . . 1 1 . 2 . . . . Tool/Special 1 | . . . . . . . 1 . . Average Slot Usage (%) 83 | . 89 94 91 80 75 92 68 92 77 Engine 5 | . 14 11 11 14 2 . 3 2 . Core 3 | . . . . . 3 13 1 7 6 Leg 11 | . 13 5 . . 6 25 20 20 19 Wheel 1 | . . 2 . . 5 . . . . Hover 7 | . 10 22 33 21 3 . . . . Device 13 | . 9 11 11 12 18 26 9 11 4 Storage 7 | . 14 11 11 9 7 6 6 5 4 Processor 2 | . . 6 3 . 3 . . 2 4 Protection 10 | . . . . 5 7 . 11 20 10 Energy Gun 5 | . . 13 . 14 6 8 2 . . Ballistic Gun 2 | . 28 8 . . 4 . . . . Slashing Weapon 6 | . . . . . . . 6 16 19 Peak Build Rating 78 | 8 11 18 23 31 37 39 60 76 78 Average Rating 31 | 6 9 15 21 26 28 37 37 67 60 On Entrance 25 | . 8 7 18 23 24 35 35 40 69 Naked Turns . | . . . . . . . . . . Heaviest Build 81 | 15 12 17 17 33 46 48 63 81 64 Greatest Support 80 | 20 20 24 24 24 53 57 70 73 80 Greatest Overweight (x) 5 | . . 2 . 5 4 . 3 2 1 Average Overweight (x) . | . . . . . . . . . . Largest Inventory Capacity 10 | 8 8 8 8 8 8 10 10 10 10 Average Capacity 8 | 7 8 8 8 8 8 8 10 10 9 Most Carried 10 | 7 8 8 8 8 8 7 10 10 9 Average Carried 6 | 3 7 7 7 7 7 5 5 9 5 Final Capacity 10 | 8 8 8 8 8 8 10 10 10 5 Final Carried 10 | 7 8 8 8 6 8 7 4 10 3 Class Distribution -------------------- 62% | Mutant 25% | Scavenger-Mutant 9% | Scavenger-Gladiator Dominant Class ---------------- Mutant | -10/Materials Mutant | -9/Materials Mutant | -9/Mines Mutant | -8/Materials Mutant | -7/Factory Scavenger-Skirmisher | -6/Factory Scavenger-Mutant | -6/DSF Scavenger-Mutant | -5/Factory Scavenger-Mutant | -4/Factory Resources | -11 -10 -9 -9 -8 -7 -6 -6 -5 -4 ----------- Run | Yrd Mat Mat Min Mat Fac Fac DSF Fac Fac Matter Collected 2397 | 396 55 138 44 382 646 130 202 333 71 Remotely . | . . . . . . . . . . Salvage Created 4681 | 73 57 207 . 586 828 130 533 1901 366 Parts 218 | . 2 16 . 31 35 6 35 84 9 Haulers Intercepted . | . . . . . . . . . . Recyclers Shooed 1 | . . . . . . . . 1 . Parts Field Recycled 7 | . . . . . 4 3 . . . Retrieved Matter 67 | . . . . . 12 55 . . . Parts Self-Destructed . | . . . . . . . . . . Prevented . | . . . . . . . . . . Kills | -11 -10 -9 -9 -8 -7 -6 -6 -5 -4 ------- Run | Yrd Mat Mat Min Mat Fac Fac DSF Fac Fac Combat Hostiles Destroyed 83 | 8 1 2 . 10 20 . 11 25 6 Melee 42 | . . . . . . . 11 25 6 Guns 35 | 8 1 2 . 7 17 . . . . Cannons 3 | . . . . 1 2 . . . . AOE 2 | . . . . 1 1 . . . . Classes Destroyed 13 | 1 2 3 . 1 5 . 1 . . Worker 5 | . . 1 . . 1 . . 3 . Recycler 7 | . . . . . 1 1 . 5 . Operator 1 | . . 1 . . . . . . . Watcher 5 | . 1 2 . 2 . . . . . Swarmer 20 | . . . . . 3 . 4 11 2 Grunt 25 | . 1 . . 4 12 . 2 4 2 Brawler 2 | . . . . . 1 . . 1 . Duelist 2 | . . . . 1 . . . 1 . Sentry 9 | . . 2 . 5 1 . . 1 . Specialist 4 | . . . . . . . 4 . . Hunter 7 | . . . . . 1 . 1 3 2 Programmer 6 | . . . . . 2 . . 4 . Assembled 8 | 8 . . . . . . . . . Best Kill Streak 7 | 2 1 4 . 4 4 1 4 7 3 Combat Bots Only 5 | 2 1 1 . 3 4 . 4 5 3 Max Kills in Single Turn 2 | 1 1 1 . 2 2 1 1 1 1 Gunslinging 1 | . . . . . 1 . . . . Exploded 1 | . . . . 1 1 . . . . Melee 1 | . . . . . . . 1 1 1 Uniques/NPCs Destroyed . | . . . . . . . . . . Combat | -11 -10 -9 -9 -8 -7 -6 -6 -5 -4 -------- Run | Yrd Mat Mat Min Mat Fac Fac DSF Fac Fac Hostile Shots Fired 1075 | 31 19 16 . 72 250 2 203 202 280 Missed 298 | 6 8 5 . 21 70 . 51 61 76 Hits 777 | 25 11 11 . 51 180 2 152 141 204 Melee 21 | 4 . . . 5 4 . . 8 . Projectile 756 | 21 11 11 . 46 176 2 152 133 204 AOE 5 | . . . . . . . . . 5 Critical Strikes 25 | . . . . 5 6 . 3 5 6 Actively Blocked 1 | . . . . 1 . . . . . Part Disruptions 2 | . . . . . . . . 1 1 Damage Taken 13200 | 360 121 172 . 888 2523 37 2983 2368 3748 Core 2526 | 60 44 29 . 106 505 . 473 155 1154 Absorbed by Shields 33 | . . . . . . . . . 33 Redirected to Shielding 272 | . . . . 66 66 . 95 45 . Ignored by Resistances 170 | . . . . . 61 . . 95 14 Regen/Repaired (Parts) 152 | . . . . 136 16 . . . . Core Remaining (%) 65 | 76 58 . 92 80 27 . 44 84 . Volleys Fired 154 | 21 9 14 . 37 68 . 4 . 1 Largest 2 | 2 2 2 . 2 2 . 1 . 1 Hottest 125 | 40 40 90 . 95 125 . 63 . 36 Shots Fired 275 | 42 18 28 . 60 122 . 4 . 1 Gun 258 | 42 18 28 . 51 115 . 4 . . Cannon 15 | . . . . 9 6 . . . . Launcher 2 | . . . . . 1 . . . 1 Special . | . . . . . . . . . . Kinetic 141 | 42 18 6 . 9 66 . . . . Thermal 37 | . . . . . 33 . 4 . . Explosive . | . . . . . . . . . . Electromagnetic 97 | . . 22 . 51 23 . . . 1 Robot Hit Streak 18 | 6 8 8 . 15 18 . 4 . 3 Robot Miss Streak 8 | 4 1 4 . 6 8 . 1 . . Penetration Max . | . . . . . . . . . . Secondary Targets 3 | 2 . . . . 1 . . . . Max Gunslinging Chain 1 | 1 . . . . 1 . . . . Shots Hit Robots 387 | 25 14 18 2 52 108 2 37 97 32 Core Hits 233 | 15 3 10 . 32 102 1 17 41 12 Critical Kills 1 | 1 . . . . . . . . . Critical Parts Destroyed . | . . . . . . . . . . Critical Strikes 33 | 1 . 3 . . 1 . 7 16 5 Burn 1 | . . . . . 1 . . . . Destroy 1 | 1 . . . . . . . . . Corrupt 3 | . . 3 . . . . . . . Sever 28 | . . . . . . . 7 16 5 Melee Attacks 235 | . . . 2 5 . 2 50 142 34 Impact . | . . . . . . . . . . Slashing 227 | . . . . . . 1 50 142 34 Piercing . | . . . . . . . . . . Sneak Attacks 29 | . . . 2 4 . 2 . 16 5 Combat Hostiles 5 | . . . . . . . . . 5 Follow-up Attacks 38 | . . . . . . . . 32 6 Damage Inflicted 10495 | 308 139 298 . 860 2024 64 1109 4222 1471 Guns 3197 | 308 139 250 . 637 1812 . 51 . . Cannons 299 | . . . . 166 133 . . . . Explosions 274 | . . 48 . 57 79 . . . 90 Melee 6723 | . . . . . . 64 1058 4222 1379 Ramming 2 | . . . . . . . . . 2 Kinetic 1813 | 308 139 39 . 166 1161 . . . . Thermal 813 | . . 48 . 57 657 . 51 . . Explosive . | . . . . . . . . . . Electromagnetic 1144 | . . 211 . 637 206 . . . 90 Impact . | . . . . . . . . . . Slashing 6723 | . . . . . . 64 1058 4222 1379 Piercing . | . . . . . . . . . . Highest Corruption 9 | . . 1 1 . 9 . . 9 4 Average Corruption 5 | . . 1 1 . 5 . . 6 1 Corruption Purged . | . . . . . . . . . . Corruption Blocked . | . . . . . . . . . . Effects 62 | . . 2 3 . 28 . . 27 2 Message Errors 9 | . . . . . 5 . . 4 . Matter Fused 17 | . . . . . 5 . . 12 . Heat Flow Errors 8 | . . . . . 4 . . 3 1 Energy Discharges 5 | . . 1 . . 1 . . 3 . Parts Fused 2 | . . . 1 . 1 . . . . Data Loss (minor) 11 | . . . 1 . 4 . . 5 1 Data Loss (major) 4 | . . . 1 . 3 . . . . Misfires 3 | . . 1 . . 2 . . . . Alerts 1 | . . . . . 1 . . . . Weapon Failures 2 | . . . . . 2 . . . . Overload Shots . | . . . . . . . . . . Overflow Damage 517 | . . . . . . . . 416 101 Projectiles . | . . . . . . . . . . Explosions . | . . . . . . . . . . Melee 517 | . . . . . . . . 416 101 Knockbacks 7 | . . . . 7 . . . . . Impact . | . . . . . . . . . . Kinetic 7 | . . . . 7 . . . . . Secondary . | . . . . . . . . . . Self-Inflicted Damage 129 | . . . . . 129 . . . . Shots 2 | . . . . . 2 . . . . Rammed 2 | . . . . . . . . . 2 Targets Rammed 2 | . . . . . . . . . 2 Kicked . | . . . . . . . . . . Crushed . | . . . . . . . . . . Highest Temperature 488 | . 12 72 . 284 488 . 166 212 117 Average Temperature 94 | . 7 27 . 70 148 . 63 76 32 Received Heat Transfer 2731 | . 66 54 . 378 927 21 564 198 523 Effects 7 | . . . . 3 4 . . . . Shutdowns 2 | . . . . . 2 . . . . Interference 5 | . . . . 3 2 . . . . Siege Activations . | . . . . . . . . . . Martial Activations . | . . . . . . . . . . Shielding Activations . | . . . . . . . . . . Robots Disrupted . | . . . . . . . . . . Combat Hostiles . | . . . . . . . . . . Robots Corrupted 1 | . . . . 1 . . . . . Combat Hostiles 1 | . . . . 1 . . . . . Parts Fried 5 | . . 2 . 3 . . . . . Impact Corruptions . | . . . . . . . . . . Robots Melted . | . . . . . . . . . . Combat Hostiles . | . . . . . . . . . . Parts Melted . | . . . . . . . . . . Heat Transferred 1566 | . . 50 . . 1405 . 111 . . Parts Sabotaged . | . . . . . . . . . . Parts Stolen . | . . . . . . . . . . Parts Stripped . | . . . . . . . . . . Power Chain Reactions 3 | . . 1 . 1 1 . . . . Alert | -11 -10 -9 -9 -8 -7 -6 -6 -5 -4 ------- Run | Yrd Mat Mat Min Mat Fac Fac DSF Fac Fac Maximum Alert Level 1 | . . . . . . . . 1 . Low Security (%) 98 | 100 100 100 100 100 100 100 100 92 100 Level 1 1 | . . . . . . . . 7 . Level 2 . | . . . . . . . . . . Level 3 . | . . . . . . . . . . Level 4 . | . . . . . . . . . . Level 5 . | . . . . . . . . . . High Security . | . . . . . . . . . . Max Security . | . . . . . . . . . . Sterilizations 1 | . . . . . . . 1 . . Peak Influence 261 | . 20 49 10 78 148 60 174 261 65 Initial 91 | . . 3 10 . 17 60 14 91 17 Average 38 | . 4 20 . 28 59 43 77 85 10 Influence Increases 2543 | . 36 129 . 366 663 10 320 749 270 Destroy 0b10 Robot/C 1520 | . 20 40 . 220 400 . 220 500 120 Destroy 0b10 Robot/NC 90 | . 5 20 . 10 10 5 . 40 . Destroy Leader 310 | . 2 24 . 64 70 . 40 80 30 Allied During Kill 3 | . . . . 3 . . . . . Successful Hack 107 | . 9 27 . 16 26 5 . 24 . Disable Machine 45 | . . . . . 30 . . . 15 Destroy Structure 33 | . . 3 . 8 22 . . . . Partial Spotted 45 | . . 15 . 15 15 . . . . Lose Combat Pursuer 390 | . . . . 30 90 . 60 105 105 Influence Decreases 2498 | . 26 110 29 327 579 113 166 887 261 Entered New Map 219 | . . 7 19 . 22 63 6 83 19 Time Decay 1454 | . 26 93 10 267 407 40 . 534 77 Lost Part 675 | . . 10 . 60 150 10 160 120 165 Purge Threat 150 | . . . . . . . . 150 . Squads Dispatched 21 | . . 1 . 1 9 . 2 6 2 Investigation 2 | . . 1 . 1 . . . . . Extermination 6 | . . . . . 2 . . 3 1 Reinforcement 9 | . . . . . 4 . 2 2 1 Assault . | . . . . . . . . . . Garrison 4 | . . . . . 3 . . 1 . Intercept . | . . . . . . . . . . Searches Triggered . | . . . . . . . . . . Construction Impeded . | . . . . . . . . . . Haulers Reinforced 1 | . . . . . 1 . . . . Active Scanning Responses . | . . . . . . . . . . Cargo Convoy Interrupts . | . . . . . . . . . . Stealth | -11 -10 -9 -9 -8 -7 -6 -6 -5 -4 --------- Run | Yrd Mat Mat Min Mat Fac Fac DSF Fac Fac Distress Signals 6 | . . . . 3 . . . 1 2 Communications Jammed . | . . . . . . . . . . Distress Signals . | . . . . . . . . . . Times Spotted 161 | 9 3 6 . 21 34 1 18 34 35 Peak Tracking Total 16 | 3 2 2 . 5 5 . 6 5 16 Tactical Retreats 20 | 1 . . . 2 4 . 3 7 3 Traps | -11 -10 -9 -9 -8 -7 -6 -6 -5 -4 ------- Run | Yrd Mat Mat Min Mat Fac Fac DSF Fac Fac Traps Triggered 11 | . . 1 . 1 5 . 1 2 1 Indirectly . | . . . . . . . . . . Trap Hack Attempts . | . . . . . . . . . . Triggered . | . . . . . . . . . . Disarmed . | . . . . . . . . . . Reprogrammed . | . . . . . . . . . . Reused . | . . . . . . . . . . Traps Extracted . | . . . . . . . . . . Installed . | . . . . . . . . . . Triggered . | . . . . . . . . . . Machines | -11 -10 -9 -9 -8 -7 -6 -6 -5 -4 ---------- Run | Yrd Mat Mat Min Mat Fac Fac DSF Fac Fac Machines Disabled 3 | . . . . . 2 . . . 1 Max in Single Turn 2 | . . . . . 2 . . . 1 Machines Repaired . | . . . . . . . . . . Machines Dismantled . | . . . . . . . . . . Machines Sabotaged . | . . . . . . . . . . Overloaded Fab Kills . | . . . . . . . . . . Hacking | -11 -10 -9 -9 -8 -7 -6 -6 -5 -4 --------- Run | Yrd Mat Mat Min Mat Fac Fac DSF Fac Fac Machines Accessed 37 | . 2 6 2 8 10 1 . 7 1 Terminals 17 | . 2 3 1 3 4 1 . 3 . Fabricators 4 | . . . . . 2 . . 2 . Repair Stations 5 | . . 2 . 1 2 . . . . Recycling Units 4 | . . . . 2 1 . . 1 . Scanalyzers 4 | . . 1 . 2 1 . . . . Garrison Access 2 | . . . . . . . . 1 1 Total Hacks 94 | . 4 17 3 27 20 1 . 21 1 Successful 53 | . 4 12 1 19 5 1 . 11 . Failed 41 | . . 5 2 8 15 . . 10 1 Catastrophic 10 | . . 1 . 1 4 . . 3 1 Database Lockouts . | . . . . . . . . . . Manual 20 | . 1 1 . 4 4 . . 10 . Terminals 42 | . 4 7 2 6 9 1 . 13 . Fabricators 9 | . . . . . 4 . . 5 . Repair Stations 14 | . . 6 . 4 4 . . . . Recycling Units 10 | . . . . 6 2 . . 2 . Scanalyzers 16 | . . 4 . 11 1 . . . . Garrison Access 2 | . . . . . . . . 1 1 Terminal Hacks 20 | . 4 5 1 1 1 1 . 7 . Open Door 1 | . . . 1 . . . . . . Open DSF 1 | . . . . . . 1 . . . Emergency Access Points 5 | . 2 1 . . 1 . . 1 . Terminal Index 1 | . . 1 . . . . . . . Unreport Threat 1 | . . . . . . . . 1 . Locate Traps 5 | . 1 1 . 1 . . . 2 . Patrol Status 1 | . . . . . . . . 1 . Zone Layout 5 | . 1 2 . . . . . 2 . Fabricator Hacks . | . . . . . . . . . . Repair Station Hacks 6 | . . 2 . 2 2 . . . . Scan Component 4 | . . 2 . 1 1 . . . . Repair 2 | . . . . 1 1 . . . . Recycling Unit Hacks 7 | . . . . 4 1 . . 2 . Process 1 | . . . . 1 . . . . . Report Inventory 3 | . . . . 2 . . . 1 . Retrieve Matter 1 | . . . . 1 . . . . . Retrieve Components 2 | . . . . . 1 . . 1 . Scanalyzer 15 | . . 4 . 11 . . . . . Insert Component 9 | . . 2 . 7 . . . . . Analyze 6 | . . 2 . 4 . . . . . Garrison Access Hacks . | . . . . . . . . . . Unauthorized Hacks 4 | . . 1 . . 1 . . 2 . Terminals 1 | . . 1 . . . . . . . Assimilate 1 | . . 1 . . . . . . . Fabricators 3 | . . . . . 1 . . 2 . Report 3 | . . . . . 1 . . 2 . Repair Stations . | . . . . . . . . . . Recycling Units . | . . . . . . . . . . Scanalyzers . | . . . . . . . . . . Garrison Access . | . . . . . . . . . . Data Cores Recovered 1 | . . 1 . . . . . . . Used 1 | . . 1 . . . . . . . Hacking Detections 30 | . 2 5 1 6 9 . . 6 1 Full Trace Events 1 | . . 1 . . . . . . . Feedback Events . | . . . . . . . . . . Feedback Blocked . | . . . . . . . . . . Robot Schematics Acquired . | . . . . . . . . . . Robots Built . | . . . . . . . . . . Authchips . | . . . . . . . . . . Time . | . . . . . . . . . . Total Robot Build Rating . | . . . . . . . . . . Part Schematics Acquired 6 | . . 2 . 4 . . . . . Parts Built . | . . . . . . . . . . Authchips . | . . . . . . . . . . Time . | . . . . . . . . . . Total Part Build Rating . | . . . . . . . . . . Parts Repaired 2 | . . . . 1 1 . . . . Time 69 | . . . . 50 19 . . . . Parts Recycled . | . . . . . . . . . . Recycled Matter 266 | . . . . 266 . . . . . Retrieved Matter 297 | . . . . 297 . . . . . Retrieved Components 11 | . . . . . 1 . . 10 . Parts Scanalyzed 6 | . . 2 . 4 . . . . . Part Schematics Acquired 6 | . . 2 . 4 . . . . . Parts Damaged . | . . . . . . . . . . Bothacking | -11 -10 -9 -9 -8 -7 -6 -6 -5 -4 ------------ Run | Yrd Mat Mat Min Mat Fac Fac DSF Fac Fac Used RIF Installer . | . . . . . . . . . . Robots Hacked 4 | . . . 1 2 . 1 . . . Non-combat 4 | . . . 1 2 . 1 . . . Combat . | . . . . . . . . . . Robot Hacks Applied 4 | . . . 1 2 . 1 . . . parse_system 1 | . . . 1 . . . . . . no_distress 1 | . . . . 1 . . . . . find_recycling 2 | . . . . 1 . 1 . . . Relay Couplers Released . | . . . . . . . . . . Fabnet Peak Effective % . | . . . . . . . . . . Robots Rewired . | . . . . . . . . . . Allies Hacked . | . . . . . . . . . . Hacks Repelled . | . . . . . . . . . . Allies | -11 -10 -9 -9 -8 -7 -6 -6 -5 -4 -------- Run | Yrd Mat Mat Min Mat Fac Fac DSF Fac Fac Total Allies 2 | . . . . 2 . . . . . Largest Group 1 | . . . . 1 . . . . . Highest-Rated Group 18 | . . . . 18 . . . . . Highest-Rated Ally 18 | . . . . 18 . . . . . Initial Warlord ECA Mod 17 | . . . . . . . . 9 8 Total Orders . | . . . . . . . . . . Ally Attacks 21 | . . . . 21 . . . . . Total Damage 142 | . . . . 142 . . . . . Kills 1 | . . . . 1 . . . . . Allies Corrupted . | . . . . . . . . . . Allies Melted . | . . . . . . . . . . Intel | -11 -10 -9 -9 -8 -7 -6 -6 -5 -4 ------- Run | Yrd Mat Mat Min Mat Fac Fac DSF Fac Fac Active Infowar (turns) 3537 | 467 79 225 76 262 1151 86 112 929 150 Sensors 1962 | . . . . 152 1151 86 108 465 . IFF 11 | . . . . . . . 11 . . Seismic 1398 | 467 79 225 76 110 291 86 64 . . Triangulation 611 | . . . . . . . . 464 147 Cloaking 22 | . . . . . . . 22 . . ECM 3 | . . . . . . . . . 3 Robot Analysis Total . | . . . . . . . . . . Derelict Logs Recovered 1 | . . . 1 . . . . . . Drone Launches 15 | . . . . 15 . . . . . Drone Recoveries 14 | . . . . 14 . . . . . Exploration | -11 -10 -9 -9 -8 -7 -6 -6 -5 -4 ------------- Run | Yrd Mat Mat Min Mat Fac Fac DSF Fac Fac Turns Passed 7418 | 2066 128 285 265 935 1373 86 414 1510 356 Spaces Moved 4021 | 694 98 258 429 457 868 57 146 833 181 Core 29 | 7 . . . 1 7 . . . 14 Treads 7 | . . . . . . . . . 7 Legs 2242 | 687 15 1 . . 343 57 146 833 160 Wheels 253 | . . 1 . 14 238 . . . . Hover 1454 | . 83 256 429 442 244 . . . . Flight 36 | . . . . . 36 . . . . Fastest Speed 35 | 50 66 58 58 58 35 122 90 110 50 Average Speed 111 | 119 83 65 58 107 113 122 135 143 115 Slowest Speed 330 | 120 120 185 58 300 250 122 330 265 250 Overloaded Moves . | . . . . . . . . . . Propulsion Burnouts . | . . . . . . . . . . Robots Hopped . | . . . . . . . . . . Potential Cave-ins . | . . . . . . . . . . Cave-ins Triggered . | . . . . . . . . . . Exploration Rate (%) 38 | 62 20 32 93 43 26 2 76 24 6 Regions Visited 9 Branch Regions 1 Pre-discovered Areas . | . . . . . . . . . . Known Exits Taken 2 | . . . 1 . . 1 . . . Unknown Exits Taken 6 | 1 1 1 . 1 1 . . 1 . Scrap Searched 1 | . . . 1 . . . . . . Spaces Dug . | . . . . . . . . . . Terrain Destroyed 31 | . . 3 . 7 21 . . . . Melee . | . . . . . . . . . . Projectile . | . . . . . . . . . . AOE 31 | . . 3 . 7 21 . . . . Terrain Rammed . | . . . . . . . . . . Walls Destroyed . | . . . . . . . . . . Machines Disabled . | . . . . . . . . . . Actions | -11 -10 -9 -9 -8 -7 -6 -6 -5 -4 --------- Run | Yrd Mat Mat Min Mat Fac Fac DSF Fac Fac Total 6419 | 1886 128 345 445 837 1129 71 282 1016 280 Wait 1727 | 1158 9 31 5 297 117 3 27 31 49 Move 4012 | 693 97 257 428 456 867 56 145 832 181 Hop . | . . . . . . . . . . Pick Up 55 | 7 1 10 2 3 13 2 3 13 1 Fast Attach 89 | 7 1 4 1 5 25 1 24 17 4 Attach 46 | . . 4 . 9 11 3 2 8 9 Detach 25 | . 2 . 1 6 7 . 6 2 1 Swap 54 | . 6 14 2 16 5 2 2 5 2 Drop 69 | . 3 11 4 3 16 2 19 10 1 Fire 154 | 21 9 14 . 37 68 . 4 . 1 Melee 184 | . . . 2 5 . 2 50 98 27 Ram . | . . . . . . . . . . Kick . | . . . . . . . . . . Crush 2 | . . . . . . . . . 2 Escape Stasis 2 | . . . . . . . . . 2 Rewire . | . . . . . . . . . . Trap . | . . . . . . . . . . Miscellaneous . | . . . . . . . . . . Route ------- -11/Scrapyard -10/Materials -9/Materials -9/Mines (discovered 2 exits: *Mat x2) -8/Materials -7/Factory -6/Factory -6/DSF -5/Factory -4/Factory History --------- Turn | Location | Event 4 | -11/Scrapyard | Discovered new exit (range 15) 1201 | -11/Scrapyard | Assembled infested the area 2067 | -11/Scrapyard | Entered Materials 2092 | -10/Materials | Build established: Mutant 2138 | -10/Materials | Discovered new exit (range 13) 2195 | -10/Materials | Entered another Materials area 2195 | -9/Materials | Evolved 2 slots: Propulsion x1, Utility x1 2438 | -9/Materials | Discovered new exit (range 20) 2480 | -9/Materials | Entered Mines 2483 | -9/Mines | Met a Derelict bent on vengeance 2512 | -9/Mines | Discovered new exit (range 8) 2553 | -9/Mines | Found a Scrap Suit stashed away for nefarious purposes 2556 | -9/Mines | Found Scrap Suit 2627 | -9/Mines | Identified exit to Materials 2655 | -9/Mines | Found the Drone Emporium 2657 | -9/Mines | Found Prototype Device 2745 | -9/Mines | Entered Materials 2745 | -8/Materials | Evolved 2 slots: Power x1, Utility x1 2745 | -8/Materials | Identified Splice Drone Bay 3609 | -8/Materials | Lost 3 parts (1p1n1w) 3661 | -8/Materials | Repaired Cmb. Airjet 3667 | -8/Materials | Discovered new exit (range 9) 3680 | -8/Materials | Entered Factory 3680 | -7/Factory | Evolved 2 slots: Utility x2 3721 | -7/Factory | Repaired Shock Rifle 3888 | -7/Factory | Garrison activated, responded to threat 4417 | -7/Factory | Build established: Scavenger-Mutant 4468 | -7/Factory | Core integrity fell below 50% 4500 | -7/Factory | Lost 8 parts (2p3n2u1w) 4763 | -7/Factory | Build established: Mutant 5032 | -7/Factory | Discovered new exit (range 12) 5053 | -7/Factory | Entered another Factory area 5053 | -6/Factory | Evolved 2 slots: Propulsion x1, Weapon x1 5137 | -6/Factory | Identified exit to DSF 5139 | -6/Factory | Entered DSF 5210 | -6/DSF | Additional patrols routed to DSF 5443 | -6/DSF | Lost 9 parts (2p5n2u) 5481 | -6/DSF | Sterilization system engaged 5490 | -6/DSF | Core integrity fell below 50% 5501 | -6/DSF | Ambient heat levels rising (+10) 5516 | -6/DSF | Ambient heat levels rising (+10) 5522 | -6/DSF | Discovered new exit (range 16) 5531 | -6/DSF | Ambient heat levels rising (+10) 5540 | -6/DSF | Lost 4 parts (1p3n) 5546 | -6/DSF | Ambient heat levels rising (+10) 5553 | -6/DSF | Entered Factory 5553 | -5/Factory | Evolved 2 slots: Utility x2 5973 | -5/Factory | Build established: Scavenger-Gladiator 6210 | -5/Factory | Garrison activated, responded to threat 6345 | -5/Factory | Lost 3 parts (1p2u) 6398 | -5/Factory | Lost 3 parts (2n1u) 6639 | -5/Factory | Build established: Scavenger-Mutant 7050 | -5/Factory | Discovered new exit (range 5) 7063 | -5/Factory | Entered another Factory area 7063 | -4/Factory | Evolved 2 slots: Propulsion x1, Weapon x1 7271 | -4/Factory | Lost 9 parts (2p3n4u) 7397 | -4/Factory | Core integrity fell below 50% 7409 | -4/Factory | Spotted B-86 Titan 7413 | -4/Factory | Core integrity fell below 20% 7419 | -4/Factory | Destroyed by S-27 Virus with Autogun Last Messages --------------- 07410_ C-30 ARC bursts open, deploying its payload. 07410_ S-27 Virus unfolds itself. 07410_ K-01 Serf destroyed. 07410_ P-70 Sage resets P-70 Sage, system corruption cleaned. 07411_ R-10 Processor collects Wheel. 07412_ K-01 Serf collects debris. 07415_ Acquired Adv. ECM Suite. 07416_ K-01 Serf collects debris. 07417_ Triggered Stasis Trap. 07417_ A bubble of rippling energy engulfs the area. 07417_ Field strength at 94. 07417_ Terminal disabled. 07417_ Slug penetrates Terminal. 07417_ Slug penetrates Wall. 07417_ Field strength at 69. 07418_ Field strength at 53. 07419_ U-05 Engineer builds a Wall. Map ----- +----------------------------------------------------+ | ???????????????????????????????? ??????# | | ???????????????????????????????? ??????# | | ????????????????????????????????? ?????# | | ????????????????????????????????? ?????# | | ????????????????????????????????? ?????#### | | ?????????????????????????????????? ????????# #### | | ?????????????????????????????????? ??????###/#??? | | ??????????????????????????#######+# ####### #??? | | ??????????????????????????# ## #??? | | ???????????????????????"" # == ! ## #??? | | ???????????????????????? /% == ## #??? | | ??????????????????????????# == [ # #??? | | ??????????????????????????# % # #??? | | ??????????????????????????# = %% # #??? | | ????????????????????????????########## %# ##+#### | | ??????????????????????????####??????#%%%### | | ??????????????????????????# #####??#[%= | | | ????????????????????????### ##T ####%!!#%* | | ????????????????????????# BB uu [### ## #### | | ????????????????????????# BB ### ## #???? | | ????????????????????????# " = u = ## #???? | | ????????????????????????# " % u %## #???? | | ????????????????????????# "T = g ## #???? | | ????????????????????????# "" ###### #???? | | ????????????????????????+ ""A #????#### #???? | | ????????????????????????#@ s #???????# #???? | | ????????????????????????#![ !! s #???????# #???? | | ????????????????????????# [%!! s #???????#+#???? | | ????????????????????????#![ !! s %k #?? ????? | | ????????????????????? g s # #?? ????? | | ????????????????? H #! #??"????? | | ??????????????? #" ""###? #???????? | | ????????????????######+######"R""#???? #???????? | | ????????????????????????????#""""#?????" #???????? | | ????????????????????????????######?????? #???????? | | ?????????????????????????????????????????#???????? | | ?????????????????????????????????????????????????? | | ?????????????????????????????????????????????????? | | ?????????????????????????????????????????????????? | | ?????????????????????????????????????????????????? | | ?????????????????????????????????????????????????? | | ?????????????????????????????????????????????????? | | ?????????????????????????????????????????????????? | | ?????????????????????????????????????????????????? | | ?????????????????????????????????????????????????? | | ?????????????????????????????????????????????????? | | ?????????????????????????????????????????????????? | | ?????????????????????????????????????????????????? | | ?????????????????????????????????????????????????? | | ?????????????????????????????????????????????????? | +----------------------------------------------------+ Best States ------------- Heat Dissipation 56 Energy Generation 32 Energy Capacity 465 Matter Stores 302 Matter Capacity 450 Sight Range 16 Robot Scan Range 16 Terrain Scan Density 85 Cloak Strength 2 Additional Mass Support 6 Armor Coverage 1200 Resistance: KI 30 Resistance: EM 25 Core Shielding 20 Propulsion Shielding 66 Weapon Shielding 66 Melee Speed Boost 20 Phase Shifting 5 Evasion (%) 85 Target Analysis 6 Recoil Reduction 1 Offensive Hacking 10 Item Schematics ----------------- Rocket Launcher | -9/Materials | Scanalyzed Wheel | -9/Materials | Scanalyzed Seismic Detector | -8/Materials | Scanalyzed Imp. Datajack | -8/Materials | Scanalyzed Flak Cannon | -8/Materials | Scanalyzed Mining Laser | -8/Materials | Scanalyzed Robot Schematics ------------------ None Fabricated ------------ Nothing Repaired ---------- Cmb. Airjet | 13% | -8/Materials Shock Rifle | 70% | -7/Factory Alien Tech Used ----------------- None Achievements -------------- Curiosity Killed The Cat Dodgeball, But With Guns Error 47 Challenges ------------ None Game ------ Seed WarlordCentriumField Manual? 0 Play Time 02:11:49 Cumulative 50.5 hours Start 2025.06.06 @ 23:37:23 End 2025.06.07 @ 02:04:55 Sessions 1 Manual Loads 0 Difficulty Rogue Special Mode None Game No. 47 Rogue 47 Adventurer 0 Explorer 0 Win Type - Total 0 Types 0/0/0/0/0/0/0/0/0/0 Lore% 26 Gallery% 32 Achievement% 29 Wizard Run 0 Options --------- Layout 1 ASCII 1 Keyboard 0 Movement Numpad Keybinds 0 Fullscreen 1 Font 24/Smallcaps Map View 50x35 Zoom Use 0% Tactical HUD 1 Map Filters NONE Filters NONE Steam 1 RUN: e36790df-fde3-444a-9f1b-5cbe480f75f3